bitfinex-derivatives/quotes_SOLF0:USTF0_20250202
["timestamp","ask_amount","ask_price","bid_price","bid_amount"]
[1738539557648,41.64579559,202.3,202.13,41.64579559]
[1738539557843,4.9476,202.19,202.13,41.64579559]
[1738539558042,41.64579559,202.34,202.13,41.64579559]
[1738539558349,41.64579559,202.38,202.17,41.64579559]
[1738539558548,41.64579559,202.46,202.25,41.64579559]
[1738539558750,41.64579559,202.5,202.29,41.64579559]
[1738539559249,0.03688255,202.38,202.29,41.64579559]
[1738539559448,0.03688255,202.38,202.37,0.03785291]
[1738539559848,0.03688255,202.38,202.26,6.1786]
[1738539560746,0.03688255,202.38,202.29,41.64579559]
[1738539560945,41.64579559,202.51,202.33,41.64579559]
[1738539561149,4.9417,202.43,202.33,46.58979559]
[1738539561352,41.64579559,202.55,202.33,41.64579559]
[1738539561646,4.9409,202.47,202.37,41.64579559]
[1738539561951,41.64579559,202.59,202.41,41.64579559]
[1738539562151,0.03324726,202.44,202.41,41.64579559]
[1738539562350,41.64579559,202.59,202.41,41.64579559]
[1738539562555,41.64579559,202.59,202.41,44.81599559]
[1738539562856,42.21080346,202.63,202.41,44.81599559]
[1738539563348,4.94,202.5,202.41,44.81599559]
[1738539563750,0.03801905,202.54,202.41,44.81599559]
[1738539563950,42.21080346,202.63,202.45,41.64579559]
[1738539564150,3.1593,202.7,202.45,41.64579559]
[1738539564151,101.00488387,202.67,202.45,41.64579559]
[1738539564446,3.1593,202.7,202.49,41.64579559]
[1738539564447,5.578e-05,202.5,202.49,41.64579559]
[1738539564646,41.64579559,202.71,202.49,41.64579559]
[1738539564852,41.64579559,202.71,202.54,0.03281392]
[1738539565051,6.54,202.74,202.54,0.03281392]
[1738539565052,6.54,202.74,202.57,41.64579559]
[1738539565250,41.64579559,202.75,202.57,41.64579559]
[1738539565752,41.64579559,202.79,202.57,41.64579559]
[1738539565954,0.03621879,202.68,202.64,0.03729733]
[1738539566248,41.64579559,202.84,202.64,0.03729733]
[1738539566551,4.9335,202.77,202.69,46.58089559]
[1738539566755,41.64579559,202.92,202.69,41.64579559]
[1738539566948,41.64579559,202.96,202.77,41.64579559]
[1738539567253,4.9313,202.86,202.77,41.64579559]
[1738539567450,41.64579559,202.96,202.77,41.64579559]
[1738539567654,4.9316,202.85,202.84,0.03532491]
[1738539567954,4.9316,202.85,202.84,2.491e-05]
[1738539568154,41.64579559,202.96,202.74,6.0724]
[1738539568453,41.64579559,202.96,202.77,41.64579559]
[1738539568656,41.64579559,202.96,202.74,6.0724]
[1738539568854,41.64579559,202.96,202.77,41.64579559]
[1738539569149,41.64579559,203.17,202.85,41.64579559]
[1738539569150,0.03182977,202.89,202.85,41.64579559]
[1738539569349,6.54,203.14,202.85,41.64579559]
[1738539569548,41.64579559,203.1,202.89,41.64579559]
[1738539569750,41.64579559,203.1,202.9,6.0724]
[1738539569953,4.9259,203.08,202.97,46.57429559]
[1738539570157,2.9606,203.16,202.93,41.64579559]
[1738539570454,41.64579559,203.13,202.93,41.64579559]
[1738539570753,41.64579559,203.13,202.97,0.03265001]
[1738539570754,0.03715079,203.01,202.97,0.03265001]
[1738539570957,4.23325021,203.05,202.97,41.6784456]
[1738539571156,4.9272,203.03,202.97,41.6784456]
[1738539571450,4.23325021,203.05,202.97,41.6784456]
[1738539571654,4.23325021,203.05,202.97,0.03265001]
[1738539572056,0.0318652,203.03,202.97,0.03265001]
[1738539572355,4.9282,202.99,202.97,5.001e-05]
[1738539572558,0.0318652,203.03,202.97,5.001e-05]
[1738539572953,4.9282,202.99,202.97,5.001e-05]
[1738539573857,41.64579559,203.01,202.76,41.64579559]
[1738539574061,41.64579559,202.93,202.72,41.64579559]
[1738539574255,4.9315,202.85,202.72,41.64579559]
[1738539574461,3.0634,203.02,202.8,41.64579559]
[1738539575159,3.0634,203.02,202.73,3.1661]
[1738539575160,0.03244383,202.93,202.89,0.03772484]
[1738539575553,3.0634,203.02,202.79,41.64579559]
[1738539575754,3.0634,203.02,202.89,0.03480562]
[1738539575955,4.9324,202.81,202.73,44.81189559]
[1738539576155,41.64579559,202.95,202.73,44.81189559]
[1738539576356,41.64579559,202.99,202.78,41.64579559]
[1738539576556,3.0634,203.02,202.82,41.64579559]
[1738539577257,3.0634,203.02,202.9,5.261e-05]
[1738539577258,0.03726767,202.94,202.9,5.261e-05]
[1738539577657,41.64579559,203.0,202.73,44.81189559]
[1738539577859,41.64579559,203.0,202.8,41.64579559]
[1738539578060,41.64579559,202.96,202.73,44.81189559]
[1738539578254,41.64579559,202.92,202.73,44.81189559]
[1738539578460,0.0323909,202.87,202.82,0.03436977]
[1738539578763,41.64579559,202.88,202.69,41.64579559]
[1738539578958,41.64579559,202.88,202.67,3.0989]
[1738539579255,4.9345,202.73,202.67,3.0989]
[1738539579458,41.64579559,202.76,202.57,41.64579559]
[1738539579658,4.9364,202.65,202.57,41.64579559]
[1738539579858,41.64579559,202.76,202.53,8.9955]
[1738539579859,41.64579559,202.68,202.53,6.0741]
[1738539580061,41.64579559,202.64,202.44,2.9214]
[1738539580256,41.64579559,202.6,202.44,2.9214]
[1738539580454,41.64579559,202.56,202.4,3.0989]
[1738539580653,41.64579559,202.48,202.33,6.39]
[1738539580854,4.9417,202.43,202.33,6.39]
[1738539581153,41.64579559,202.4,202.2,4.9471]
[1738539581357,4.9431,202.38,202.22,41.64579559]
[1738539581556,41.64579559,202.4,202.21,0.98907076]
[1738539582060,4.9449,202.3,202.18,41.64579559]
[1738539582256,41.64579559,202.36,202.16,7.24117489]
[1738539582257,0.0376263,202.33,202.28,7.287e-05]
[1738539582458,83.29159118,202.29,202.16,5.80412168]
[1738539582757,41.64579559,202.29,202.11,5.80412168]
[1738539582958,41.64579559,202.29,202.09,5.80412168]
[1738539583264,15.03,202.4,202.18,41.64579559]
[1738539583556,15.03,202.4,202.1,53.56569383]
[1738539583557,0.98819111,202.39,202.22,46.24972837]
[1738539583751,41.64579559,202.41,202.27,0.03215541]
[1738539583752,0.03696532,202.31,202.27,0.03215541]
[1738539584256,4.9424,202.4,202.3,41.64579559]
[1738539584458,97.78,202.52,202.3,41.64579559]
[1738539584659,4.942,202.42,202.26,41.64579559]
[1738539584859,97.78,202.52,202.26,41.64579559]
[1738539584860,41.64579559,202.47,202.26,41.64579559]
[1738539585260,41.64579559,202.47,202.3,41.64579559]
[1738539585556,0.0376618,202.39,202.34,0.037121]
[1738539585957,0.0376618,202.39,202.34,41.68291659]
[1738539586159,0.0376618,202.39,202.3,41.64579559]
[1738539586160,41.64579559,202.58,202.38,41.64579559]
[1738539586357,4.9393,202.53,202.38,41.64579559]
[1738539586568,6.54,202.6,202.42,41.64579559]
[1738539586756,41.64579559,202.58,202.38,41.64579559]
[1738539586959,4.9389,202.55,202.42,41.64579559]
[1738539587255,41.64579559,202.58,202.38,41.64579559]
[1738539587452,97.78,202.63,202.42,41.64579559]
[1738539587453,4.9379,202.59,202.42,41.64579559]
[1738539587656,0.03517684,202.51,202.48,4.9403]
[1738539587859,0.03517684,202.51,202.46,41.67901515]
[1738539588054,4.9374,202.61,202.46,41.64579559]
[1738539588259,41.64579559,202.66,202.46,46.58669559]
[1738539588459,0.0321224,202.51,202.46,41.64579559]
[1738539588659,41.64579559,202.7,202.5,41.64579559]
[1738539588862,0.97864348,202.75,202.59,41.64579559]
[1738539589157,0.97864348,202.75,202.51,41.64579559]
[1738539589158,9.1122,202.94,202.63,41.64579559]
[1738539589358,2.9862,202.93,202.63,41.64579559]
[1738539589762,6.54,202.92,202.63,41.64579559]
[1738539590062,0.03334467,202.76,202.71,41.67820106]
[1738539590260,41.64579559,202.92,202.71,41.67820106]
[1738539590462,41.64579559,202.92,202.71,41.64579559]
[1738539590661,41.64579559,202.96,202.75,41.64579559]
[1738539591064,97.8,202.99,202.79,41.64579559]
[1738539591264,41.64579559,203.0,202.79,41.64579559]
[1738539591460,4.9303,202.9,202.87,0.03210447]
[1738539591766,0.03229758,202.91,202.79,41.64579559]
[1738539592167,0.03229758,202.91,202.63,5.8698]
[1738539592168,41.64579559,202.88,202.86,6.809e-05]
[1738539592460,0.03184979,202.87,202.86,6.809e-05]
[1738539592665,4.9279,203.0,202.85,41.64579559]
[1738539592869,41.64579559,203.03,202.82,5.8456]
[1738539593068,41.64579559,203.03,202.85,41.64579559]
[1738539593769,4.9285,202.98,202.85,41.64579559]
[1738539593969,0.03166345,202.96,202.92,0.03595242]
[1738539596267,4.23325021,203.05,202.93,41.64579559]
[1738539596466,4.9278,203.0,202.93,41.64579559]
[1738539596769,4.23325021,203.05,202.89,41.64579559]
[1738539597165,4.23325021,203.05,202.84,41.64579559]
[1738539597166,4.23325021,203.05,202.97,41.64579559]
[1738539597565,2.092e-05,202.99,202.95,41.68330116]
[1738539597776,4.23325021,203.05,202.95,83.32909675]
[1738539597973,4.23325021,203.05,203.01,41.64579559]
[1738539598176,4.23325021,203.05,202.95,41.68330116]
[1738539598370,4.23325021,203.05,202.95,41.64579559]
[1738539598567,4.9272,203.03,202.95,41.64579559]
[1738539598770,4.23325021,203.05,202.95,41.64579559]
[1738539598969,4.23325021,203.05,202.97,0.03789026]
[1738539598970,0.03284177,203.01,202.97,0.03789026]
[1738539599167,4.9281,202.99,202.97,0.03789026]
[1738539599373,0.03284177,203.01,202.97,0.03789026]
[1738539600379,0.03284177,203.01,202.83,41.64579559]
[1738539600872,0.03284177,203.01,202.5,4.5932921]
[1738539600873,41.64579559,202.96,202.6,7.95400126]
[1738539601073,41.64579559,203.04,202.82,41.64579559]
[1738539601274,41.64579559,203.04,202.81,41.64579559]
[1738539601572,41.64579559,202.95,202.76,3.1486]
[1738539601775,41.64579559,202.95,202.72,6.2688]
[1738539601776,48.19686579,202.95,202.9,5.97e-05]
[1738539601973,41.64579559,202.91,202.68,41.64579559]
[1738539602172,41.64579559,202.95,202.76,41.64579559]
[1738539602373,41.64579559,202.91,202.72,41.64579559]
[1738539602568,3.0546,203.03,202.48,6.52]
[1738539602569,41.64579559,202.83,202.48,6.52]
[1738539602770,41.64579559,202.79,202.58,41.64579559]
[1738539603077,41.64579559,202.84,202.67,41.64579559]
[1738539603376,4.9357,202.68,202.66,0.03326553]
[1738539603579,41.64579559,202.8,202.59,41.64579559]
[1738539603777,41.64579559,202.76,202.55,41.64579559]
[1738539604078,41.64579559,202.89,202.68,41.64579559]
[1738539604274,41.64579559,202.81,202.65,0.03283067]
[1738539604474,4.9361,202.66,202.56,852.42009407]
[1738539604680,41.64579559,202.73,202.56,851.43273231]
[1738539604882,41.64579559,202.69,202.56,851.43273231]
[1738539605078,41.64579559,202.65,202.56,851.43273231]
[1738539605374,41.64579559,202.61,202.45,3.0737]
[1738539605573,0.03656359,202.65,202.35,41.64579559]
[1738539605574,4.9402,202.49,202.35,41.64579559]
[1738539605781,41.64579559,202.57,202.35,41.64579559]
[1738539605974,41.64579559,202.53,202.33,3.0737]
[1738539606176,4.9406,202.48,202.33,3.0737]
[1738539606372,41.64579559,202.41,202.2,321.8118345]
[1738539606577,41.64579559,202.37,202.2,321.8118345]
[1738539606774,41.64579559,202.33,202.2,321.8118345]
[1738539606973,41.64579559,202.29,202.2,321.8118345]
[1738539607185,4.9454,202.28,202.26,764.08144718]
[1738539607478,89.81159118,202.29,202.2,321.8118345]
[1738539607678,4.9477,202.19,202.05,327.34058602]
[1738539607878,48.16579559,202.29,202.07,41.64579559]
[1738539608083,41.64579559,202.33,202.15,41.64579559]
[1738539608785,0.03334808,202.26,202.22,4.69e-05]
[1738539609481,139.36579559,202.36,202.15,41.64579559]
[1738539609785,139.36579559,202.36,202.05,327.34058602]
[1738539609786,41.64579559,202.16,202.05,327.34058602]
[1738539610083,6.52,202.19,202.05,327.34058602]
[1738539610284,6.52,202.19,201.96,3.1113]
[1738539610479,6.52,202.19,202.08,0.03484648]
[1738539610480,4.9495,202.11,202.08,0.03484648]
[1738539610879,0.03709727,202.11,202.08,0.03484648]
[1738539611883,0.03709727,202.11,202.08,4.648e-05]
[1738539612087,4.95,202.09,202.08,4.648e-05]
[1738539612580,0.03709727,202.11,202.08,4.648e-05]
[1738539613281,346.54668769,202.1,202.09,41.64579559]
[1738539613586,346.54668769,202.1,202.05,41.64579559]
[1738539613888,346.54668769,202.1,201.94,4.69022374]
[1738539613889,346.54668769,202.1,201.97,41.64579559]
[1738539614084,41.64579559,202.09,201.98,20.55887211]
[1738539614285,41.64579559,202.09,201.9,4.69022374]
[1738539614484,41.64579559,202.09,201.96,20.54067566]
[1738539614786,41.64579559,202.09,201.89,47.67949559]
[1738539614787,41.64579559,202.0,201.89,4.69022374]
[1738539614979,41.64579559,202.0,201.9,8.93399883]
[1738539615178,46.60009559,201.92,201.83,4.69022374]
[1738539615381,41.64579559,201.92,201.81,4.69022374]
[1738539615579,41.64579559,201.84,201.77,4.69022374]
[1738539615783,41.64579559,201.88,201.67,4.69022374]
[1738539615985,0.03663627,201.97,201.84,0.03476193]
[1738539616185,41.64579559,202.0,201.84,0.03476193]
[1738539616378,41.64579559,201.92,201.72,4.69022374]
[1738539616584,41.64579559,201.88,201.73,9.39669985]
[1738539616782,41.64579559,201.92,201.9,0.03656165]
[1738539617085,0.99014802,201.99,201.9,0.03656165]
[1738539617280,0.03586558,201.93,201.86,41.64579559]
[1738539617485,0.03586558,201.93,201.83,6.2298]
[1738539617685,0.99014802,201.99,201.92,0.03412063]
[1738539617987,0.99014802,201.99,201.74,41.64579559]
[1738539617988,83.29159118,201.96,201.84,4.30840764]
[1738539618181,0.03336894,201.9,201.84,4.30840764]
[1738539618587,0.03336894,201.9,201.85,4.30840764]
[1738539618786,0.99014802,201.99,201.88,4.955]
[1738539618991,41.64579559,201.98,201.77,41.64579559]
[1738539619291,6.54,202.12,201.81,41.64579559]
[1738539619491,41.64579559,202.09,201.89,41.64579559]
[1738539619687,41.64579559,202.09,201.9,9.3972]
[1738539619895,41.64579559,202.13,201.93,41.64579559]
[1738539620192,0.03787915,202.02,201.97,0.03146129]
[1738539620383,139.60579559,202.29,201.97,41.67725688]
[1738539620586,146.14579559,202.29,201.98,2.9213]
[1738539620787,41.64579559,202.22,202.1,4.9496]
[1738539620991,41.64579559,202.3,202.09,41.64579559]
[1738539621192,41.64579559,202.3,202.1,9.4665]
[1738539621591,41.64579559,202.22,202.1,9.4665]
[1738539621791,4.9482,202.17,202.03,4.9514]
[1738539621987,41.64579559,202.09,201.99,6.3726]
[1738539622189,41.64579559,202.13,201.99,6.3726]
[1738539622389,41.64579559,202.09,201.99,6.3726]
[1738539622589,41.64579559,202.09,202.02,0.03387035]
[1738539622795,41.64579559,202.05,202.02,0.03387035]
[1738539623094,0.03432083,202.08,202.02,0.03387035]
[1738539623387,41.64579559,202.22,202.01,41.64579559]
[1738539623592,41.64579559,202.26,202.05,41.64579559]
[1738539623790,41.64579559,202.22,202.03,0.03715147]
[1738539624094,41.64579559,202.26,202.05,41.64579559]
[1738539624390,41.64579559,202.26,202.02,9.1036]
[1738539624588,41.64579559,202.34,202.14,41.64579559]
[1738539624792,0.03344628,202.18,202.14,41.64579559]
[1738539624990,41.64579559,202.34,202.14,41.64579559]
[1738539625296,41.64579559,202.42,202.22,41.64579559]
[1738539625589,41.64579559,202.46,202.26,41.64579559]
[1738539625796,41.64579559,202.51,202.3,41.64579559]
[1738539626092,41.64579559,202.55,202.35,41.64579559]
[1738539626391,41.64579559,202.59,202.39,41.64579559]
[1738539626593,41.64579559,202.59,202.4,8.9727]
[1738539626891,42.62499183,202.63,202.43,41.64579559]
[1738539627097,6.54,202.71,202.47,41.64579559]
[1738539627098,41.64579559,202.71,202.47,41.64579559]
[1738539627400,41.64579559,202.79,202.59,41.64579559]
[1738539627589,41.64579559,202.79,202.6,6.0745]
[1738539627794,46.57879559,202.79,202.66,4.936]
[1738539628090,41.64579559,202.83,202.63,41.64579559]
[1738539628290,4.9326,202.81,202.67,4.9356]
[1738539628495,41.64579559,202.83,202.63,41.64579559]
[1738539628691,41.64579559,202.71,202.61,2.9474]
[1738539628891,41.64579559,202.71,202.6,6.0745]
[1738539629095,41.67838552,202.75,202.6,6.0745]
[1738539629290,41.64579559,202.83,202.64,0.03761161]
[1738539629498,41.64579559,202.79,202.64,0.03761161]
[1738539629698,0.03535378,202.7,202.6,6.0745]
[1738539630000,0.03535378,202.7,202.69,0.03642778]
[1738539630394,0.03535378,202.7,202.6,6.0745]
[1738539630601,0.03535378,202.7,202.67,0.03684201]
[1738539631300,0.03535378,202.7,202.51,2.9474]
[1738539631494,0.03535378,202.7,202.51,44.59319559]
[1738539631692,41.64579559,202.8,202.59,41.64579559]
[1738539631898,41.64579559,202.84,202.67,41.64579559]
[1738539632202,4.9328,202.8,202.67,41.64579559]
[1738539632405,48.16579559,202.95,202.67,41.64579559]
[1738539632406,41.64579559,202.88,202.67,41.64579559]
[1738539632600,0.03268945,202.78,202.73,0.03340377]
[1738539632996,5.14983352,203.04,202.63,46.58259559]
[1738539632997,41.64579559,202.91,202.71,41.64579559]
[1738539633397,0.0345033,202.78,202.73,0.03479294]
[1738539633599,41.64579559,202.91,202.71,41.64579559]
[1738539633902,41.64579559,203.17,202.75,41.64579559]
[1738539633903,0.03764457,202.78,202.75,41.64579559]
[1738539634199,41.64579559,203.07,202.75,41.64579559]
[1738539634407,41.64579559,203.13,202.93,41.64579559]
[1738539635001,4.9265,203.06,202.93,41.64579559]
[1738539635200,41.64579559,203.13,202.89,41.64579559]
[1738539635400,0.03310562,203.01,202.97,0.03450686]
[1738539635597,4.9282,202.99,202.97,0.03450686]
[1738539635797,0.03310562,203.01,202.97,6.86e-06]
[1738539637296,4.23325021,203.05,202.97,6.86e-06]
[1738539638505,0.03428341,203.03,202.97,6.86e-06]
[1738539640209,4.23325021,203.05,202.97,6.86e-06]
[1738539640507,41.64579559,203.39,203.04,41.64579559]
[1738539640508,41.64579559,203.27,203.04,41.64579559]
[1738539640702,4.9232,203.2,203.09,41.64579559]
[1738539640909,41.64579559,203.31,203.09,41.64579559]
[1738539641207,4.9219,203.25,203.13,41.64579559]
[1738539641399,4.9219,203.25,203.17,41.64579559]
[1738539641603,0.03757191,203.22,203.18,0.03665559]
[1738539641801,41.64579559,203.39,203.21,41.64579559]
[1738539641802,4.9206,203.3,203.21,41.64579559]
[1738539642107,41.64579559,203.43,203.21,41.64579559]
[1738539642304,41.64579559,203.43,203.25,41.64579559]
[1738539642505,41.64579559,203.51,203.29,41.64579559]
[1738539642908,4.9174,203.44,203.33,41.64579559]
[1738539643111,0.03517456,203.42,203.38,0.0377561]
[1738539643704,41.64579559,203.51,203.31,2.911]
[1738539643906,41.64579559,203.47,203.31,2.911]
[1738539644107,41.64579559,203.47,203.38,0.03100907]
[1738539644108,0.03747998,203.42,203.38,0.03100907]
[1738539644307,0.03747998,203.42,203.38,9.07e-06]
[1738539644513,41.64579559,203.39,203.22,5.9402]
[1738539644713,41.64579559,203.35,203.22,5.9402]
[1738539645102,41.64579559,203.31,203.14,2.911]
[1738539645305,41.64579559,203.23,203.07,5.7821]
[1738539645709,41.64579559,203.19,202.98,41.64579559]
[1738539645911,4.9262,203.07,202.96,3.0452]
[1738539646111,41.64579559,203.11,202.96,3.0452]
[1738539646306,41.64579559,203.07,202.96,3.0452]
[1738539646505,41.64579559,203.17,202.83,3.1453]
[1738539646506,4.9278,203.0,202.99,9.884e-05]
[1738539646709,4.9278,203.0,202.73,41.64579559]
[1738539646710,41.64579559,203.03,202.74,9.3498]
[1738539646912,41.64579559,202.87,202.74,9.3498]
[1738539647110,41.64579559,202.83,202.65,44.79109559]
[1738539647414,41.64579559,203.0,202.78,41.64579559]
[1738539647715,41.64579559,202.96,202.73,41.64579559]
[1738539648114,0.03691425,202.91,202.87,0.03258707]
[1738539648314,4.9305,202.89,202.87,0.03258707]
[1738539648511,41.64579559,202.96,202.73,41.64579559]
[1738539648709,41.64579559,203.0,202.73,41.64579559]
[1738539648910,0.03225928,202.9,202.86,0.03373449]
[1738539649311,41.64579559,203.0,202.8,41.64579559]
[1738539649514,41.64579559,202.96,202.73,41.64579559]
[1738539649711,0.03617904,202.9,202.86,0.03209465]
[1738539650110,41.64579559,202.89,202.72,41.64579559]
[1738539650313,41.64579559,202.93,202.72,41.64579559]
[1738539650510,41.64579559,202.87,202.66,0.98687456]
[1738539650807,41.64579559,202.87,202.51,41.64579559]
[1738539650808,41.64579559,202.83,202.61,41.64579559]
[1738539651008,41.64579559,202.79,202.61,41.64579559]
[1738539651207,41.64579559,202.71,202.56,3.0797]
[1738539651409,41.64579559,202.71,202.43,41.64579559]
[1738539651410,41.64579559,202.63,202.43,41.64579559]
[1738539651612,41.64579559,202.59,202.41,9.0404]
[1738539652314,41.64579559,202.62,202.43,41.64579559]
[1738539652516,41.64579559,202.58,202.37,41.64579559]
[1738539652716,41.64579559,202.75,202.52,41.64579559]
[1738539652916,41.64579559,202.95,202.6,41.64579559]
[1738539652917,41.64579559,202.79,202.6,41.64579559]
[1738539653217,0.03427393,202.66,202.56,41.64579559]
[1738539653610,0.03427393,202.66,202.6,41.64579559]
[1738539653924,41.64579559,202.84,202.6,41.64579559]
[1738539654122,41.64579559,202.84,202.59,0.03129599]
[1738539654123,41.64579559,202.88,202.68,41.64579559]
[1738539654420,41.64579559,202.84,202.64,41.64579559]
[1738539654919,41.64579559,202.8,202.6,47.45779559]
[1738539655218,41.64579559,202.76,202.6,5.812]
[1738539655413,41.64579559,202.72,202.6,5.812]
[1738539655619,0.03266452,202.72,202.68,0.03392023]
[1738539656315,41.67846011,202.72,202.44,4.9413]
[1738539656620,41.64579559,202.63,202.33,11.9275]
[1738539656819,41.64579559,202.73,202.48,4.9403]
[1738539656820,4.936,202.67,202.48,4.9403]
[1738539657018,41.64579559,202.73,202.49,41.64579559]
[1738539657414,41.64579559,202.73,202.52,4.9393]
[1738539657617,0.0322857,202.63,202.59,0.03145531]
[1738539657917,4.9331,202.78,202.59,4.96905531]
[1738539658116,4.9331,202.78,202.52,2.907]
[1738539658117,41.64579559,202.73,202.54,41.64579559]
[1738539658322,41.64579559,202.69,202.5,8.9901]
[1738539658616,41.64579559,202.73,202.54,41.64579559]
[1738539658815,41.64579559,202.77,202.54,41.64579559]
[1738539659017,41.64579559,202.77,202.51,41.64579559]
[1738539659018,41.64579559,202.77,202.58,41.64579559]
[1738539659222,0.03457675,202.66,202.61,0.03204175]
[1738539659619,0.03457675,202.66,202.58,41.64579559]
[1738539659819,41.64579559,202.82,202.62,41.64579559]
[1738539660226,41.64579559,202.7,202.5,50.63589559]
[1738539660418,41.64579559,202.7,202.5,8.9901]
[1738539660619,4.9335,202.77,202.6,4.9373]
[1738539660820,41.64579559,202.69,202.5,8.9901]
[1738539661117,41.64579559,202.77,202.53,41.64579559]
[1738539661322,41.64579559,202.77,202.57,41.64579559]
[1738539661523,41.64579559,202.89,202.7,41.64579559]
[1738539661717,41.64579559,202.89,202.66,41.64579559]
[1738539662123,41.64579559,202.81,202.6,210.30997722]
[1738539662323,41.64579559,202.73,202.6,210.30997722]
[1738539662619,41.64579559,202.81,202.6,210.30997722]
[1738539662924,41.64579559,202.85,202.64,0.03269393]
[1738539663423,41.64579559,202.81,202.59,120.51203705]
[1738539663622,41.64579559,202.77,202.59,78.86624146]
[1738539663824,41.64579559,202.73,202.59,78.86624146]
[1738539664121,41.64579559,202.69,202.59,78.86624146]
[1738539664323,41.64579559,202.69,202.66,8.997e-05]
[1738539664523,0.03605478,202.7,202.59,78.86624146]
[1738539664926,41.64579559,202.68,202.59,78.86624146]
[1738539665125,0.03605478,202.7,202.59,78.86624146]
[1738539665526,41.64579559,202.73,202.59,78.86624146]
[1738539665722,0.03729629,202.67,202.62,0.03263019]
[1738539666022,41.64579559,202.65,202.62,0.03263019]
[1738539666327,4.9367,202.64,202.62,0.03263019]
[1738539666624,0.03729629,202.67,202.62,0.03263019]
[1738539667618,0.03729629,202.67,202.62,3.019e-05]
[1738539667823,4.9366,202.64,202.62,3.019e-05]
[1738539668025,41.64579559,202.65,202.59,61.63817165]
[1738539668229,41.64579559,202.65,202.59,45.01737165]
[1738539668525,46.58309559,202.61,202.59,19.04077165]
[1738539668722,41.64579559,202.61,202.55,164.30466971]
[1738539668923,41.64579559,202.56,202.55,128.24584019]
[1738539669127,46.58429559,202.56,202.55,85.52526706]
[1738539669526,41.64579559,202.56,202.55,85.52526706]
[1738539669727,41.64579559,202.56,202.55,25.38298748]
[1738539669930,83.29159118,202.56,202.43,5.80412168]
[1738539670128,83.29159118,202.52,202.43,5.80412168]
[1738539670330,41.64579559,202.45,202.32,5.80412168]
[1738539670532,41.64579559,202.49,202.33,29.39102891]
[1738539670729,41.64579559,202.57,202.37,41.64579559]
[1738539670940,41.64579559,202.84,202.49,41.64579559]
[1738539670941,41.64579559,202.69,202.49,41.64579559]
[1738539671130,41.64579559,202.77,202.53,41.64579559]
[1738539671335,41.64579559,202.77,202.57,41.64579559]
[1738539671536,41.64579559,202.81,202.61,41.64579559]
[1738539671733,4.9322,202.82,202.65,4.9362]
[1738539672033,41.64579559,202.89,202.69,41.64579559]
[1738539672234,4.9313,202.86,202.69,41.64579559]
[1738539672440,41.64579559,202.88,202.65,41.64579559]
[1738539672635,41.64579559,202.96,202.77,41.64579559]
[1738539672938,41.64579559,202.92,202.73,41.64579559]
[1738539673130,41.64579559,202.92,202.61,6.52]
[1738539673131,0.03254593,202.79,202.74,0.03319759]
[1738539673329,59.2515983,203.0,202.74,0.03319759]
[1738539673530,474.07376222,202.88,202.73,41.64579559]
[1738539673735,474.07376222,202.88,202.73,25.09990701]
[1738539674437,474.07376222,202.88,202.82,4.9319]
[1738539674636,0.03192923,202.83,202.78,0.03340176]
[1738539674935,0.03192923,202.83,202.73,19.41610059]
[1738539675239,515.71955781,202.87,202.69,41.64579559]
[1738539675538,177.96491091,202.82,202.65,41.64579559]
[1738539675730,182.89721091,202.82,202.61,41.64579559]
[1738539675929,182.89721091,202.82,202.65,41.64579559]
[1738539675930,177.96491091,202.82,202.65,41.64579559]
[1738539676234,169.78311091,202.82,202.81,41.64579559]
[1738539676435,296.10885131,202.87,202.81,41.64579559]
[1738539676838,288.47255131,202.87,202.85,41.64579559]
[1738539677038,0.03560249,202.86,202.81,41.64579559]
[1738539677335,0.03560249,202.86,202.83,4.9317]
[1738539677537,0.03560249,202.86,202.82,0.03349122]
[1738539677538,267.46770486,202.85,202.82,0.03349122]
[1738539678144,267.46770486,202.85,202.64,6.5]
[1738539678145,267.46770486,202.85,202.8,41.64579559]
[1738539678337,211.43436641,202.85,202.84,41.64579559]
[1738539678534,163.84993964,202.85,202.84,41.64579559]
[1738539678735,150.22963964,202.85,202.84,41.64579559]
[1738539679042,64.02148693,202.85,202.84,83.29159118]
[1738539679341,73.01434039,202.87,202.84,83.29159118]
[1738539679536,69.70624039,202.87,202.84,83.29159118]
[1738539679736,69.7392037,202.87,202.84,41.64579559]
[1738539679938,62.2279037,202.87,202.85,4.9314]
[1738539680242,62.2279037,202.87,202.84,83.29159118]
[1738539680243,30.8143037,202.87,202.84,83.29159118]
[1738539680541,30.8143037,202.87,202.82,0.03745144]
[1738539681042,72.46009929,202.87,202.82,0.03745144]
[1738539681237,30.8143037,202.87,202.82,0.03745144]
[1738539681544,30.8143037,202.87,202.83,41.64579559]
[1738539681942,30.8143037,202.87,202.82,0.03745144]
[1738539683140,30.8143037,202.87,202.82,41.68324703]
[1738539683640,4.9272,203.03,202.87,4.9308]
[1738539683844,9.2234,203.07,202.91,41.64579559]
[1738539684037,41.64579559,203.14,202.91,41.64579559]